[Event "*** SCC Grand Prix: Titled Tuesday Blitz"]
[Site "Chess.com"]
[Date "2020.08.11"]
[Round "6"]
[White "Jovidon91"]
[Black "Grineva_Marianna"]
[Result "1-0"]
[WhiteElo "2448"]
[BlackElo "2206"]
[TimeControl "180+1"]
[EndTime "11:08:03 PDT"]
[Termination "Jovidon91 won on time"]

1. d4 {[%clk 0:03:00.9]} 1... f5 {[%clk 0:02:56.6]} 2. Nc3 {[%clk 0:02:59.9]}
2... Nf6 {[%clk 0:02:54]} 3. Bg5 {[%clk 0:03:00]} 3... d6 {[%clk 0:02:54.5]} 4.
f3 {[%clk 0:02:57.8]} 4... Nbd7 {[%clk 0:02:50.9]} 5. e4 {[%clk 0:02:56.7]} 5...
fxe4 {[%clk 0:02:50.3]} 6. fxe4 {[%clk 0:02:55.1]} 6... e5 {[%clk 0:02:47.6]} 7.
Nf3 {[%clk 0:02:54.9]} 7... Be7 {[%clk 0:02:43.6]} 8. Bc4 {[%clk 0:02:53.4]}
8... c6 {[%clk 0:02:36]} 9. dxe5 {[%clk 0:02:45.6]} 9... dxe5 {[%clk 0:02:32.7]}
10. Qe2 {[%clk 0:02:39]} 10... Qc7 {[%clk 0:02:21.1]} 11. Bh4 {[%clk 0:02:28.7]}
11... Nb6 {[%clk 0:02:16.8]} 12. Bb3 {[%clk 0:02:26.2]} 12... Bg4 {[%clk
0:02:15.4]} 13. O-O-O {[%clk 0:02:11.8]} 13... Nh5 {[%clk 0:01:58.2]} 14. Bxe7
{[%clk 0:02:03.5]} 14... Qxe7 {[%clk 0:01:59.1]} 15. h3 {[%clk 0:01:55.2]} 15...
Nf4 {[%clk 0:01:54.6]} 16. Qf2 {[%clk 0:01:43.1]} 16... Be6 {[%clk 0:01:50.9]}
17. Bxe6 {[%clk 0:01:20]} 17... Qxe6 {[%clk 0:01:51.8]} 18. g3 {[%clk
0:01:20.1]} 18... Ng6 {[%clk 0:01:37.2]} 19. Ng5 {[%clk 0:01:13.7]} 19... Qe7
{[%clk 0:01:37.3]} 20. h4 {[%clk 0:01:11.8]} 20... h6 {[%clk 0:01:33.7]} 21. Qf5
{[%clk 0:01:06]} 21... Nf8 {[%clk 0:01:21.8]} 22. Nf3 {[%clk 0:00:49.5]} 22...
Nc4 {[%clk 0:01:20]} 23. Rd3 {[%clk 0:00:34.5]} 23... g6 {[%clk 0:01:16.3]} 24.
Qg4 {[%clk 0:00:31.1]} 24... Rd8 {[%clk 0:01:06.2]} 25. Rhd1 {[%clk 0:00:20.8]}
25... Rxd3 {[%clk 0:00:57.6]} 26. Rxd3 {[%clk 0:00:21.7]} 26... h5 {[%clk
0:00:53.1]} 27. Qh3 {[%clk 0:00:21.2]} 27... Kf7 {[%clk 0:00:31.6]} 28. Ng5+
{[%clk 0:00:19.9]} 28... Kg7 {[%clk 0:00:29.1]} 29. Rf3 {[%clk 0:00:19.7]} 29...
Nd6 {[%clk 0:00:26.8]} 30. Qf1 {[%clk 0:00:16.7]} 30... Nd7 {[%clk 0:00:17.1]}
31. Nf7 {[%clk 0:00:16.4]} 31... Rf8 {[%clk 0:00:14.9]} 32. Ng5 {[%clk
0:00:16.4]} 32... Rxf3 {[%clk 0:00:14.6]} 33. Qxf3 {[%clk 0:00:17.3]} 33... Nf6
{[%clk 0:00:14.2]} 34. a3 {[%clk 0:00:15.4]} 34... a6 {[%clk 0:00:12.9]} 35. Nd1
{[%clk 0:00:15.4]} 35... Nb5 {[%clk 0:00:12.5]} 36. Ne3 {[%clk 0:00:15]} 36...
Nd4 {[%clk 0:00:12.7]} 37. Qf2 {[%clk 0:00:15]} 37... Qd7 {[%clk 0:00:10.3]} 38.
c3 {[%clk 0:00:14.8]} 38... Ne6 {[%clk 0:00:09.9]} 39. Nxe6+ {[%clk 0:00:12.6]}
39... Qxe6 {[%clk 0:00:10.8]} 40. Qf3 {[%clk 0:00:12.5]} 40... Qd6 {[%clk
0:00:09.8]} 41. Nd1 {[%clk 0:00:12.4]} 41... b5 {[%clk 0:00:09.1]} 42. Nf2
{[%clk 0:00:12.7]} 42... c5 {[%clk 0:00:08.5]} 43. Kc2 {[%clk 0:00:13]} 43... a5
{[%clk 0:00:08.8]} 44. Qd3 {[%clk 0:00:12.6]} 44... Qe6 {[%clk 0:00:07.1]} 45.
Qxb5 {[%clk 0:00:10.1]} 45... Qf7 {[%clk 0:00:07.5]} 46. Qe2 {[%clk 0:00:10.1]}
46... c4 {[%clk 0:00:06.9]} 47. Nd1 {[%clk 0:00:09.7]} 47... Ng4 {[%clk
0:00:06.6]} 48. Ne3 {[%clk 0:00:09.6]} 48... Nf2 {[%clk 0:00:04.7]} 49. Nxc4
{[%clk 0:00:08.2]} 49... a4 {[%clk 0:00:03.7]} 50. Nxe5 {[%clk 0:00:08]} 50...
Qf6 {[%clk 0:00:03.3]} 51. Nd3 {[%clk 0:00:07.1]} 51... Nh1 {[%clk 0:00:01]} 52.
e5 {[%clk 0:00:06.2]} 1-0

[Event "*** SCC Grand Prix: Titled Tuesday Blitz"]
[Site "Chess.com"]
[Date "2020.08.11"]
[Round "6"]
[White "MPGM"]
[Black "awesomevishesh"]
[Result "0-1"]
[WhiteElo "2459"]
[BlackElo "2388"]
[TimeControl "180+1"]
[EndTime "11:08:06 PDT"]
[Termination "awesomevishesh won by resignation"]

1. d4 {[%clk 0:03:00.9]} 1... Nf6 {[%clk 0:02:59.5]} 2. c4 {[%clk 0:03:00.6]}
2... g6 {[%clk 0:02:57.6]} 3. g3 {[%clk 0:03:00.9]} 3... Bg7 {[%clk 0:02:57.6]}
4. Bg2 {[%clk 0:03:01.6]} 4... O-O {[%clk 0:02:58.3]} 5. Nc3 {[%clk 0:03:01.7]}
5... d6 {[%clk 0:02:59]} 6. Nf3 {[%clk 0:03:01.9]} 6... Nc6 {[%clk 0:02:59.2]}
7. O-O {[%clk 0:03:01.5]} 7... e5 {[%clk 0:02:59.2]} 8. d5 {[%clk 0:03:01.3]}
8... Nb8 {[%clk 0:02:58.5]} 9. e4 {[%clk 0:03:01.2]} 9... a5 {[%clk 0:02:58.5]}
10. h3 {[%clk 0:02:57.6]} 10... Na6 {[%clk 0:02:58.5]} 11. Be3 {[%clk
0:02:56.9]} 11... Nd7 {[%clk 0:02:58.3]} 12. Nh4 {[%clk 0:02:53.9]} 12... Ndc5
{[%clk 0:02:57.9]} 13. Qd2 {[%clk 0:02:41.7]} 13... Bd7 {[%clk 0:02:50.7]} 14.
Rae1 {[%clk 0:02:38.3]} 14... Kh8 {[%clk 0:02:45]} 15. Kh2 {[%clk 0:02:37.7]}
15... f5 {[%clk 0:02:34.4]} 16. f4 {[%clk 0:02:34.2]} 16... fxe4 {[%clk
0:02:04]} 17. Nxe4 {[%clk 0:02:31.2]} 17... Nxe4 {[%clk 0:02:03.2]} 18. Bxe4
{[%clk 0:02:32.1]} 18... exf4 {[%clk 0:01:51.7]} 19. Bxf4 {[%clk 0:02:29.4]}
19... Nc5 {[%clk 0:01:51.5]} 20. Bg2 {[%clk 0:02:25.7]} 20... b5 {[%clk
0:01:23.6]} 21. Bg5 {[%clk 0:02:13.5]} 21... Qb8 {[%clk 0:01:17.6]} 22. Rxf8+
{[%clk 0:02:05.8]} 22... Qxf8 {[%clk 0:01:15.1]} 23. Re7 {[%clk 0:02:05.7]}
23... bxc4 {[%clk 0:00:50.3]} 24. Rxg7 {[%clk 0:01:49.2]} 24... Qxg7 {[%clk
0:00:46.9]} 25. Be3 {[%clk 0:01:49.1]} 25... Nd3 {[%clk 0:00:31.4]} 26. Nf3
{[%clk 0:01:45.1]} 26... Kg8 {[%clk 0:00:21.8]} 27. Bd4 {[%clk 0:01:42.3]} 27...
Qe7 {[%clk 0:00:21.1]} 28. b3 {[%clk 0:01:37]} 28... Rf8 {[%clk 0:00:19]} 29.
bxc4 {[%clk 0:01:36.4]} 29... Ne5 {[%clk 0:00:18.6]} 30. Nxe5 {[%clk 0:01:34.7]}
30... dxe5 {[%clk 0:00:18.7]} 31. Bc3 {[%clk 0:01:35.3]} 31... Qf6 {[%clk
0:00:09.8]} 32. Bxa5 {[%clk 0:01:32.8]} 32... Qf2 {[%clk 0:00:07.9]} 33. Qh6
{[%clk 0:00:41.1]} 33... Qc2 {[%clk 0:00:05]} 34. Qd2 {[%clk 0:00:25.4]} 34...
Qxd2 {[%clk 0:00:04.2]} 35. Bxd2 {[%clk 0:00:26.3]} 35... Rf2 {[%clk 0:00:04.3]}
36. Bc3 {[%clk 0:00:18.6]} 36... e4 {[%clk 0:00:04.3]} 37. Bd4 {[%clk 0:00:18]}
37... Rd2 {[%clk 0:00:04]} 38. Be3 {[%clk 0:00:17.5]} 38... Re2 {[%clk
0:00:03.8]} 39. Bf4 {[%clk 0:00:17.4]} 39... e3 {[%clk 0:00:03.5]} 40. Kg1
{[%clk 0:00:15.5]} 40... Re1+ {[%clk 0:00:03.8]} 41. Kh2 {[%clk 0:00:15.8]}
41... e2 {[%clk 0:00:04.4]} 42. Bxc7 {[%clk 0:00:09]} 42... Rh1+ {[%clk
0:00:03.8]} 43. Kxh1 {[%clk 0:00:08]} 43... e1=Q+ {[%clk 0:00:04.2]} 44. Kh2
{[%clk 0:00:08.3]} 44... Qe2 {[%clk 0:00:04.1]} 45. c5 {[%clk 0:00:06.8]} 45...
Bf5 {[%clk 0:00:03.5]} 46. Kh1 {[%clk 0:00:03]} 46... Qe1+ {[%clk 0:00:03.4]}
47. Kh2 {[%clk 0:00:03.1]} 47... Qe2 {[%clk 0:00:03.8]} 48. Kg1 {[%clk 0:00:03]}
48... Be4 {[%clk 0:00:04.2]} 49. Bxe4 {[%clk 0:00:02.2]} 49... Qxe4 {[%clk
0:00:04.4]} 50. d6 {[%clk 0:00:03.1]} 50... Qb1+ {[%clk 0:00:04.1]} 51. Kg2
{[%clk 0:00:03.2]} 51... Qxa2+ {[%clk 0:00:04.5]} 52. Kf3 {[%clk 0:00:02.9]}
52... Qd5+ {[%clk 0:00:05.1]} 53. Kf4 {[%clk 0:00:03.5]} 53... Qxc5 {[%clk
0:00:05.3]} 54. h4 {[%clk 0:00:03.9]} 54... Qd4+ {[%clk 0:00:05.3]} 55. Kf3
{[%clk 0:00:03.9]} 55... Kf7 {[%clk 0:00:05.7]} 0-1

[Event "*** SCC Grand Prix: Titled Tuesday Blitz"]
[Site "Chess.com"]
[Date "2020.08.11"]
[Round "6"]
[White "Alliswell998"]
[Black "AniJak"]
[Result "0-1"]
[WhiteElo "2559"]
[BlackElo "2339"]
[TimeControl "180+1"]
[EndTime "11:08:06 PDT"]
[Termination "AniJak won by checkmate"]

1. e4 {[%clk 0:03:00.9]} 1... c6 {[%clk 0:02:58.7]} 2. d4 {[%clk 0:03:00.8]}
2... d5 {[%clk 0:02:57.6]} 3. exd5 {[%clk 0:03:01.7]} 3... cxd5 {[%clk 0:02:57]}
4. Bd3 {[%clk 0:03:02.4]} 4... Nc6 {[%clk 0:02:57.2]} 5. c3 {[%clk 0:03:03]}
5... Nf6 {[%clk 0:02:53.5]} 6. Bf4 {[%clk 0:03:03.5]} 6... Bg4 {[%clk
0:02:49.9]} 7. Qb3 {[%clk 0:03:04]} 7... Qc8 {[%clk 0:02:49.1]} 8. Nd2 {[%clk
0:03:04.3]} 8... e6 {[%clk 0:02:49.4]} 9. Ngf3 {[%clk 0:03:04.8]} 9... Be7
{[%clk 0:02:47.9]} 10. O-O {[%clk 0:03:04.7]} 10... O-O {[%clk 0:02:47.7]} 11.
Rae1 {[%clk 0:03:03.5]} 11... b6 {[%clk 0:02:42.1]} 12. Ne5 {[%clk 0:03:03.5]}
12... Nxe5 {[%clk 0:02:39.3]} 13. dxe5 {[%clk 0:03:03.9]} 13... Nd7 {[%clk
0:02:38.9]} 14. Qc2 {[%clk 0:03:03.6]} 14... g6 {[%clk 0:02:31.5]} 15. h3 {[%clk
0:03:02.4]} 15... Bf5 {[%clk 0:02:31.7]} 16. Bxf5 {[%clk 0:03:02.6]} 16... gxf5
{[%clk 0:02:31.3]} 17. Nf3 {[%clk 0:02:55.7]} 17... Kh8 {[%clk 0:02:30.1]} 18.
Bg5 {[%clk 0:02:48.8]} 18... Bxg5 {[%clk 0:02:20.2]} 19. Nxg5 {[%clk 0:02:49.7]}
19... h6 {[%clk 0:02:19.6]} 20. Nf3 {[%clk 0:02:47.9]} 20... Qc4 {[%clk
0:02:15.5]} 21. Qd2 {[%clk 0:02:41.8]} 21... Kh7 {[%clk 0:02:13.6]} 22. Nd4
{[%clk 0:02:41.2]} 22... Nc5 {[%clk 0:02:05.4]} 23. Re3 {[%clk 0:02:10.8]} 23...
Rg8 {[%clk 0:02:04.7]} 24. b3 {[%clk 0:02:05.6]} 24... Qa6 {[%clk 0:02:01.5]}
25. b4 {[%clk 0:02:00.2]} 25... Ne4 {[%clk 0:02:00.8]} 26. Qd1 {[%clk
0:01:44.1]} 26... Qxa2 {[%clk 0:01:57.6]} 27. Qh5 {[%clk 0:01:41.7]} 27... Rg7
{[%clk 0:01:54.3]} 28. Rf3 {[%clk 0:01:36.9]} 28... Nd2 {[%clk 0:01:51.2]} 29.
Rg3 {[%clk 0:00:59.4]} 29... Nxf1 {[%clk 0:01:43.4]} 30. Kxf1 {[%clk 0:00:44.3]}
30... Qa1+ {[%clk 0:01:34.5]} 31. Ke2 {[%clk 0:00:44.2]} 31... Qb2+ {[%clk
0:01:34.7]} 32. Kf1 {[%clk 0:00:36.1]} 32... Rag8 {[%clk 0:01:22.3]} 33. Rxg7+
{[%clk 0:00:35]} 33... Rxg7 {[%clk 0:01:22.4]} 34. Qf3 {[%clk 0:00:33.6]} 34...
Qb1+ {[%clk 0:01:18.5]} 35. Ke2 {[%clk 0:00:33.6]} 35... Qe4+ {[%clk 0:01:17.5]}
36. Qxe4 {[%clk 0:00:29.4]} 36... fxe4 {[%clk 0:01:18.4]} 37. g3 {[%clk
0:00:27.1]} 37... a5 {[%clk 0:01:16.5]} 38. b5 {[%clk 0:00:24.4]} 38... Rg8
{[%clk 0:01:14.1]} 39. Kd2 {[%clk 0:00:22.7]} 39... Rc8 {[%clk 0:01:08]} 40. Kc2
{[%clk 0:00:22.3]} 40... Rc5 {[%clk 0:01:05.1]} 41. Kb3 {[%clk 0:00:22.2]} 41...
Kg6 {[%clk 0:01:02.4]} 42. Kb2 {[%clk 0:00:16.8]} 42... Kg7 {[%clk 0:00:49.2]}
43. Kb3 {[%clk 0:00:17.2]} 43... Kf8 {[%clk 0:00:49.5]} 44. Kc2 {[%clk
0:00:17.1]} 44... Ke7 {[%clk 0:00:49.8]} 45. Kb3 {[%clk 0:00:17.4]} 45... f6
{[%clk 0:00:49]} 46. Nc6+ {[%clk 0:00:17]} 46... Kf7 {[%clk 0:00:46.8]} 47. exf6
{[%clk 0:00:14.2]} 47... Rxb5+ {[%clk 0:00:44.9]} 48. Ka4 {[%clk 0:00:14.2]}
48... Rc5 {[%clk 0:00:43.8]} 49. Ne5+ {[%clk 0:00:14.5]} 49... Kxf6 {[%clk
0:00:38.3]} 50. Nd7+ {[%clk 0:00:14.5]} 50... Kf5 {[%clk 0:00:34]} 51. Nxb6
{[%clk 0:00:12.1]} 51... Rxc3 {[%clk 0:00:32.8]} 52. Kxa5 {[%clk 0:00:12.6]}
52... Rf3 {[%clk 0:00:31.7]} 53. Kb4 {[%clk 0:00:08.4]} 53... Rxf2 {[%clk
0:00:31.6]} 54. Kc3 {[%clk 0:00:09.3]} 54... Rf3+ {[%clk 0:00:31.8]} 55. Kd2
{[%clk 0:00:09.2]} 55... Rxg3 {[%clk 0:00:31.8]} 56. Nd7 {[%clk 0:00:10.1]}
56... Rxh3 {[%clk 0:00:31.9]} 57. Ke2 {[%clk 0:00:11]} 57... d4 {[%clk
0:00:31.9]} 58. Nc5 {[%clk 0:00:10.8]} 58... d3+ {[%clk 0:00:31.7]} 59. Kf2
{[%clk 0:00:11.7]} 59... e3+ {[%clk 0:00:31.3]} 60. Kg2 {[%clk 0:00:11.5]} 60...
Rh4 {[%clk 0:00:29.2]} 61. Nxd3 {[%clk 0:00:12]} 61... Rf4 {[%clk 0:00:27.8]}
62. Kg3 {[%clk 0:00:11]} 62... e5 {[%clk 0:00:26.3]} 63. Kg2 {[%clk 0:00:11.1]}
63... e2 {[%clk 0:00:26.2]} 64. Ne1 {[%clk 0:00:10.9]} 64... Rf1 {[%clk
0:00:25.8]} 65. Nd3 {[%clk 0:00:10.9]} 65... e1=Q {[%clk 0:00:25.9]} 66. Nxe1
{[%clk 0:00:07.6]} 66... Rxe1 {[%clk 0:00:26.8]} 67. Kf3 {[%clk 0:00:08.3]}
67... Re4 {[%clk 0:00:26.7]} 68. Kg3 {[%clk 0:00:09.2]} 68... Rf4 {[%clk
0:00:26.9]} 69. Kh3 {[%clk 0:00:08.6]} 69... e4 {[%clk 0:00:27.4]} 70. Kg2
{[%clk 0:00:09.5]} 70... e3 {[%clk 0:00:28.3]} 71. Kg3 {[%clk 0:00:09.3]} 71...
e2 {[%clk 0:00:29.2]} 72. Kg2 {[%clk 0:00:09.9]} 72... e1=Q {[%clk 0:00:28.9]}
73. Kh3 {[%clk 0:00:10.8]} 73... Qe3+ {[%clk 0:00:29.1]} 74. Kg2 {[%clk
0:00:11.7]} 74... Rf2+ {[%clk 0:00:29.6]} 75. Kg1 {[%clk 0:00:12.3]} 75... Qe1#
{[%clk 0:00:30.5]} 0-1

[Event "*** SCC Grand Prix: Titled Tuesday Blitz"]
[Site "Chess.com"]
[Date "2020.08.11"]
[Round "6"]
[White "abykhovsky"]
[Black "Gabix_94"]
[Result "0-1"]
[WhiteElo "2753"]
[BlackElo "2876"]
[TimeControl "180+1"]
[EndTime "11:08:13 PDT"]
[Termination "Gabix_94 won by resignation"]

1. d4 {[%clk 0:03:00.9]} 1... Nf6 {[%clk 0:02:59.8]} 2. Nf3 {[%clk 0:03:00.1]}
2... g6 {[%clk 0:03:00.3]} 3. c4 {[%clk 0:03:00.4]} 3... Bg7 {[%clk 0:03:00.5]}
4. Nc3 {[%clk 0:03:00.9]} 4... O-O {[%clk 0:03:00.9]} 5. Bg5 {[%clk 0:03:01.1]}
5... d6 {[%clk 0:03:00.3]} 6. e3 {[%clk 0:03:01.1]} 6... h6 {[%clk 0:03:00.4]}
7. Bh4 {[%clk 0:03:01.1]} 7... c5 {[%clk 0:03:00.9]} 8. d5 {[%clk 0:03:01.1]}
8... Na6 {[%clk 0:02:58.2]} 9. Nd2 {[%clk 0:03:00.8]} 9... Nc7 {[%clk
0:02:57.1]} 10. Be2 {[%clk 0:03:01.3]} 10... Rb8 {[%clk 0:02:57]} 11. a4 {[%clk
0:02:57.1]} 11... a6 {[%clk 0:02:55.7]} 12. O-O {[%clk 0:02:56.9]} 12... Bd7
{[%clk 0:02:54.9]} 13. a5 {[%clk 0:02:53.3]} 13... b5 {[%clk 0:02:54.2]} 14.
axb6 {[%clk 0:02:53.6]} 14... Rxb6 {[%clk 0:02:54.2]} 15. Qc2 {[%clk 0:02:53.3]}
15... Qb8 {[%clk 0:02:53]} 16. b3 {[%clk 0:02:53.6]} 16... e6 {[%clk 0:02:47.6]}
17. e4 {[%clk 0:02:53.9]} 17... exd5 {[%clk 0:02:46.1]} 18. exd5 {[%clk
0:02:53.3]} 18... Re8 {[%clk 0:02:34.7]} 19. Rfe1 {[%clk 0:02:42.8]} 19... Bf5
{[%clk 0:02:22.8]} 20. Bd3 {[%clk 0:02:42.7]} 20... Bxd3 {[%clk 0:02:21.1]} 21.
Qxd3 {[%clk 0:02:43.6]} 21... Nd7 {[%clk 0:02:20.6]} 22. h3 {[%clk 0:02:24.8]}
22... Ne5 {[%clk 0:02:10.4]} 23. Qc2 {[%clk 0:02:23.5]} 23... f5 {[%clk
0:02:00.1]} 24. f4 {[%clk 0:02:09.3]} 24... Nf7 {[%clk 0:01:57.9]} 25. Rxe8+
{[%clk 0:02:07.2]} 25... Nxe8 {[%clk 0:01:56.3]} 26. Re1 {[%clk 0:02:03.6]}
26... Kh7 {[%clk 0:01:45]} 27. Re7 {[%clk 0:01:58.3]} 27... Rb7 {[%clk
0:01:43.9]} 28. Re2 {[%clk 0:01:47.2]} 28... Nf6 {[%clk 0:01:34.4]} 29. Re6
{[%clk 0:01:41.3]} 29... Nh5 {[%clk 0:01:33.5]} 30. Ne2 {[%clk 0:01:19.5]} 30...
Nd8 {[%clk 0:01:23.8]} 31. Bxd8 {[%clk 0:00:56]} 31... Qxd8 {[%clk 0:01:24.7]}
32. g4 {[%clk 0:00:56.4]} 32... Nf6 {[%clk 0:01:11.1]} 33. gxf5 {[%clk
0:00:56.4]} 33... gxf5 {[%clk 0:01:11.4]} 34. Qxf5+ {[%clk 0:00:55.7]} 34... Kh8
{[%clk 0:01:11.9]} 35. Ne4 {[%clk 0:00:52.2]} 35... Nxe4 {[%clk 0:01:08.4]} 36.
Qxe4 {[%clk 0:00:51.4]} 36... Rb8 {[%clk 0:01:06.6]} 37. Kg2 {[%clk 0:00:46.6]}
37... Qh4 {[%clk 0:00:58]} 38. Re8+ {[%clk 0:00:44.4]} 38... Rxe8 {[%clk
0:00:58.4]} 39. Qxe8+ {[%clk 0:00:44.7]} 39... Kh7 {[%clk 0:00:59]} 40. Qe4+
{[%clk 0:00:45]} 40... Kh8 {[%clk 0:00:58.9]} 41. Ng3 {[%clk 0:00:45.3]} 41...
Qf6 {[%clk 0:00:57.7]} 42. Qe2 {[%clk 0:00:33.8]} 42... Qxf4 {[%clk 0:00:48.4]}
43. Qe8+ {[%clk 0:00:26.4]} 43... Kh7 {[%clk 0:00:47.6]} 44. Qe4+ {[%clk
0:00:22.2]} 44... Qxe4+ {[%clk 0:00:46.9]} 45. Nxe4 {[%clk 0:00:23.1]} 45... Be5
{[%clk 0:00:47.3]} 46. Kf3 {[%clk 0:00:23.3]} 46... Kg6 {[%clk 0:00:47.4]} 47.
Kg4 {[%clk 0:00:20.3]} 47... h5+ {[%clk 0:00:47.3]} 48. Kf3 {[%clk 0:00:20.7]}
48... Kf5 {[%clk 0:00:45.9]} 49. Nf2 {[%clk 0:00:19.2]} 49... Bd4 {[%clk
0:00:44.4]} 50. Ne4 {[%clk 0:00:19.1]} 50... Be5 {[%clk 0:00:44.4]} 51. Nf2
{[%clk 0:00:18.9]} 51... Bd4 {[%clk 0:00:44.7]} 52. Nd3 {[%clk 0:00:16.7]} 52...
a5 {[%clk 0:00:38.8]} 53. Nf4 {[%clk 0:00:16.1]} 53... h4 {[%clk 0:00:35.2]} 54.
Ng2 {[%clk 0:00:16.2]} 54... Bf6 {[%clk 0:00:34.9]} 55. Ke3 {[%clk 0:00:14.1]}
55... Bg5+ {[%clk 0:00:32.4]} 56. Kf3 {[%clk 0:00:14.3]} 56... Ke5 {[%clk
0:00:31.8]} 57. Kg4 {[%clk 0:00:14]} 57... Bd8 {[%clk 0:00:29.4]} 58. Nxh4
{[%clk 0:00:13.3]} 58... Kd4 {[%clk 0:00:18.4]} 59. Nf5+ {[%clk 0:00:13.5]}
59... Kc3 {[%clk 0:00:18.8]} 60. Nxd6 {[%clk 0:00:13.8]} 60... Kxb3 {[%clk
0:00:19.3]} 61. Nb7 {[%clk 0:00:05.8]} 61... Bb6 {[%clk 0:00:12.7]} 62. d6
{[%clk 0:00:06]} 62... a4 {[%clk 0:00:12.7]} 63. d7 {[%clk 0:00:06.4]} 63... a3
{[%clk 0:00:12.7]} 64. Nxc5+ {[%clk 0:00:07]} 64... Kxc4 {[%clk 0:00:12.4]} 65.
Na4 {[%clk 0:00:03.8]} 65... Bd8 {[%clk 0:00:12.1]} 0-1

[Event "*** SCC Grand Prix: Titled Tuesday Blitz"]
[Site "Chess.com"]
[Date "2020.08.11"]
[Round "6"]
[White "Manukyan_Artak"]
[Black "AttilaTurzo"]
[Result "1-0"]
[WhiteElo "2350"]
[BlackElo "2446"]
[TimeControl "180+1"]
[EndTime "11:08:16 PDT"]
[Termination "Manukyan_Artak won by resignation"]

1. e4 {[%clk 0:03:00.9]} 1... c5 {[%clk 0:02:59.7]} 2. Nf3 {[%clk 0:03:00.6]}
2... d6 {[%clk 0:02:59.9]} 3. Bb5+ {[%clk 0:03:00.1]} 3... Bd7 {[%clk
0:02:57.4]} 4. Bxd7+ {[%clk 0:02:56.7]} 4... Nxd7 {[%clk 0:02:54.9]} 5. c4
{[%clk 0:02:57.6]} 5... g6 {[%clk 0:02:50.8]} 6. Nc3 {[%clk 0:02:56.9]} 6... Bg7
{[%clk 0:02:50.6]} 7. O-O {[%clk 0:02:57.8]} 7... Ngf6 {[%clk 0:02:50.3]} 8. d3
{[%clk 0:02:52.3]} 8... O-O {[%clk 0:02:49.5]} 9. Rb1 {[%clk 0:02:51.9]} 9...
Ne8 {[%clk 0:02:48.2]} 10. a3 {[%clk 0:02:49.3]} 10... Nc7 {[%clk 0:02:43.6]}
11. Bd2 {[%clk 0:02:42.8]} 11... Ne6 {[%clk 0:02:31.5]} 12. b4 {[%clk
0:02:41.6]} 12... b6 {[%clk 0:02:31.7]} 13. Nd5 {[%clk 0:02:33.2]} 13... Ne5
{[%clk 0:02:29.6]} 14. Nxe5 {[%clk 0:02:25.9]} 14... Bxe5 {[%clk 0:02:21.8]} 15.
f4 {[%clk 0:02:24.1]} 15... Bg7 {[%clk 0:02:19.3]} 16. f5 {[%clk 0:02:22.8]}
16... Nd4 {[%clk 0:02:12.1]} 17. Bg5 {[%clk 0:01:54.1]} 17... f6 {[%clk
0:01:43]} 18. Be3 {[%clk 0:01:38.8]} 18... e6 {[%clk 0:01:43]} 19. Nf4 {[%clk
0:01:29]} 19... e5 {[%clk 0:01:19.4]} 20. Nd5 {[%clk 0:01:23.5]} 20... Nc6
{[%clk 0:01:14.4]} 21. fxg6 {[%clk 0:01:18.7]} 21... hxg6 {[%clk 0:01:14]} 22.
Qg4 {[%clk 0:01:19.6]} 22... Qe8 {[%clk 0:00:50.4]} 23. Nc7 {[%clk 0:01:06.3]}
23... Qc8 {[%clk 0:00:50.1]} 24. Qxc8 {[%clk 0:01:00.7]} 24... Raxc8 {[%clk
0:00:49.7]} 25. Nd5 {[%clk 0:01:01.6]} 25... Rf7 {[%clk 0:00:46]} 26. g4 {[%clk
0:00:53]} 26... Ne7 {[%clk 0:00:44.6]} 27. Nxe7+ {[%clk 0:00:45]} 27... Rxe7
{[%clk 0:00:45.5]} 28. h4 {[%clk 0:00:45.7]} 28... Rf8 {[%clk 0:00:42.4]} 29.
Kg2 {[%clk 0:00:41.3]} 29... Ref7 {[%clk 0:00:40.6]} 30. b5 {[%clk 0:00:34.1]}
30... Kh7 {[%clk 0:00:35.2]} 31. a4 {[%clk 0:00:33.6]} 31... Bh6 {[%clk
0:00:34.1]} 32. Bg1 {[%clk 0:00:28.4]} 32... f5 {[%clk 0:00:33.1]} 33. gxf5
{[%clk 0:00:28.3]} 33... gxf5 {[%clk 0:00:34]} 34. exf5 {[%clk 0:00:28.4]} 34...
Bf4 {[%clk 0:00:20.6]} 35. a5 {[%clk 0:00:25.6]} 35... Rxf5 {[%clk 0:00:20.3]}
36. axb6 {[%clk 0:00:24.1]} 36... axb6 {[%clk 0:00:21.2]} 37. Ra1 {[%clk
0:00:24.5]} 37... Rg8+ {[%clk 0:00:21.2]} 38. Kf3 {[%clk 0:00:20.9]} 38... Bh2+
{[%clk 0:00:19.7]} 39. Ke2 {[%clk 0:00:20.7]} 39... Rxf1 {[%clk 0:00:19.4]} 40.
Rxf1 {[%clk 0:00:17.1]} 40... Bxg1 {[%clk 0:00:19.2]} 41. Rf6 {[%clk 0:00:16.7]}
41... Rg6 {[%clk 0:00:18.4]} 42. Rf7+ {[%clk 0:00:16.9]} 42... Rg7 {[%clk
0:00:18.2]} 43. Rf6 {[%clk 0:00:17]} 43... Rd7 {[%clk 0:00:18.3]} 44. Kf3 {[%clk
0:00:16.7]} 44... Bh2 {[%clk 0:00:17.8]} 45. Ke4 {[%clk 0:00:16.6]} 45... Bg3
{[%clk 0:00:16.2]} 46. h5 {[%clk 0:00:15.8]} 46... Kg7 {[%clk 0:00:16.7]} 47.
Rg6+ {[%clk 0:00:16.1]} 47... Kh7 {[%clk 0:00:15.6]} 48. Rxg3 {[%clk 0:00:17]}
48... Kh6 {[%clk 0:00:16.2]} 49. Kd5 {[%clk 0:00:16.3]} 49... Kxh5 {[%clk
0:00:16]} 50. Kc6 {[%clk 0:00:16.5]} 50... Rd8 {[%clk 0:00:15.4]} 51. Kxb6
{[%clk 0:00:16.1]} 51... d5 {[%clk 0:00:15.9]} 52. Kxc5 {[%clk 0:00:14.5]} 52...
dxc4 {[%clk 0:00:15.4]} 53. dxc4 {[%clk 0:00:15.4]} 53... Kh4 {[%clk 0:00:13.9]}
54. Re3 {[%clk 0:00:15.4]} 54... Re8 {[%clk 0:00:14.3]} 55. Kd6 {[%clk 0:00:15]}
55... e4 {[%clk 0:00:13]} 56. c5 {[%clk 0:00:14.6]} 56... Kg4 {[%clk 0:00:12.6]}
57. c6 {[%clk 0:00:14.4]} 57... Kf4 {[%clk 0:00:13.3]} 58. Re1 {[%clk
0:00:14.5]} 58... Rd8+ {[%clk 0:00:13.3]} 59. Kc7 {[%clk 0:00:14.3]} 59... Rd2
{[%clk 0:00:12.5]} 60. b6 {[%clk 0:00:14.5]} 60... e3 {[%clk 0:00:11.7]} 61. b7
{[%clk 0:00:14.7]} 61... e2 {[%clk 0:00:11.2]} 62. b8=Q {[%clk 0:00:14.5]} 62...
Ke3 {[%clk 0:00:11.6]} 63. Qb6+ {[%clk 0:00:13.3]} 1-0